[Event "GrandPrix_30.05"]
[Site "Chess.com"]
[Date "2020.05.30"]
[Round "6"]
[White "RussianChessFighter"]
[Black "Mikhail_Golubev"]
[Result "0-1"]
[WhiteElo "2190"]
[BlackElo "2121"]
[TimeControl "600+2"]
[EndTime "10:56:25 PDT"]
[Termination "Mikhail_Golubev won by checkmate"]

1. c4 {[%clk 0:10:01.4]} 1... g6 {[%clk 0:08:37.8]} 2. Nf3 {[%clk 0:08:59]} 2...
Bg7 {[%clk 0:08:33.7]} 3. Nc3 {[%clk 0:08:58.9]} 3... d6 {[%clk 0:08:31.2]} 4.
d4 {[%clk 0:08:59.1]} 4... Nf6 {[%clk 0:08:29.6]} 5. g3 {[%clk 0:08:59.9]} 5...
O-O {[%clk 0:08:30.2]} 6. Bg2 {[%clk 0:09:00.8]} 6... Nbd7 {[%clk 0:08:14.1]} 7.
O-O {[%clk 0:08:48.4]} 7... e5 {[%clk 0:08:13]} 8. e4 {[%clk 0:08:48.2]} 8...
exd4 {[%clk 0:08:10.8]} 9. Nxd4 {[%clk 0:08:50.1]} 9... Re8 {[%clk 0:08:11.8]}
10. h3 {[%clk 0:08:44]} 10... Nc5 {[%clk 0:07:57.4]} 11. Re1 {[%clk 0:08:22.8]}
11... a6 {[%clk 0:07:55.8]} 12. Qc2 {[%clk 0:08:18.6]} 12... Ng4 {[%clk
0:06:28.8]} 13. Rd1 {[%clk 0:07:07.1]} 13... Ne5 {[%clk 0:06:22.8]} 14. b3
{[%clk 0:07:06.2]} 14... c6 {[%clk 0:02:34]} 15. Be3 {[%clk 0:06:34.8]} 15... h5
{[%clk 0:01:44.9]} 16. Nxc6 {[%clk 0:06:27.1]} 16... Nxc6 {[%clk 0:01:45.5]} 17.
Bxc5 {[%clk 0:06:27.3]} 17... Qa5 {[%clk 0:01:45.7]} 18. Bxd6 {[%clk 0:05:27.5]}
18... Qxc3 {[%clk 0:01:39.8]} 19. Qxc3 {[%clk 0:05:27.9]} 19... Bxc3 {[%clk
0:01:40]} 20. Rac1 {[%clk 0:05:29.7]} 20... Bb2 {[%clk 0:01:33.2]} 21. Rc2
{[%clk 0:05:30.5]} 21... Bg7 {[%clk 0:01:21]} 22. f4 {[%clk 0:05:27.8]} 22...
Be6 {[%clk 0:01:07.3]} 23. e5 {[%clk 0:05:28.3]} 23... f6 {[%clk 0:01:02.5]} 24.
exf6 {[%clk 0:05:11.8]} 24... Bxf6 {[%clk 0:01:02.4]} 25. Rcd2 {[%clk
0:05:12.6]} 25... Bf5 {[%clk 0:00:53.6]} 26. c5 {[%clk 0:05:07.6]} 26... Bc3
{[%clk 0:00:46.7]} 27. Bd5+ {[%clk 0:04:55.1]} 27... Kg7 {[%clk 0:00:37.6]} 28.
Rh2 {[%clk 0:04:52]} 28... Re3 {[%clk 0:00:32.7]} 29. Bxc6 {[%clk 0:04:06.3]}
29... bxc6 {[%clk 0:00:31.7]} 30. Kf2 {[%clk 0:04:07.9]} 30... Rd3 {[%clk
0:00:20.1]} 31. Rxd3 {[%clk 0:04:06]} 31... Bxd3 {[%clk 0:00:20.8]} 32. Ke3
{[%clk 0:04:05.7]} 32... Bf5 {[%clk 0:00:20.9]} 33. Kf3 {[%clk 0:04:06.2]} 33...
Re8 {[%clk 0:00:19.6]} 34. g4 {[%clk 0:04:07.3]} 34... Be4+ {[%clk 0:00:19]} 35.
Kf2 {[%clk 0:04:08.4]} 35... h4 {[%clk 0:00:18]} 36. Ke3 {[%clk 0:03:49.8]}
36... Bc2+ {[%clk 0:00:18.3]} 37. Be5+ {[%clk 0:03:46.6]} 37... Bxe5 {[%clk
0:00:18.8]} 38. fxe5 {[%clk 0:03:48.5]} 38... Rxe5+ {[%clk 0:00:19.4]} 39. Kd4
{[%clk 0:03:50]} 39... Rd5+ {[%clk 0:00:19.9]} 40. Kc4 {[%clk 0:03:51.7]} 40...
Bd3+ {[%clk 0:00:20.3]} 41. Kb4 {[%clk 0:03:52.6]} 41... Be4 {[%clk 0:00:19.2]}
42. Re2 {[%clk 0:03:49.7]} 42... Bf3 {[%clk 0:00:19]} 43. Re3 {[%clk 0:03:50.4]}
43... Bg2 {[%clk 0:00:19.9]} 44. a4 {[%clk 0:03:45.5]} 44... Kf6 {[%clk
0:00:18.7]} 45. Rc3 {[%clk 0:03:40.8]} 45... Kg5 {[%clk 0:00:14.9]} 46. Ka5
{[%clk 0:03:41.9]} 46... Bf1 {[%clk 0:00:13.5]} 47. Kb6 {[%clk 0:03:42.4]} 47...
Rd3 {[%clk 0:00:14]} 48. Rxd3 {[%clk 0:03:38.5]} 48... Bxd3 {[%clk 0:00:14.2]}
49. Kxc6 {[%clk 0:03:40.1]} 49... Bf1 {[%clk 0:00:12.8]} 50. b4 {[%clk
0:03:09.4]} 50... Bxh3 {[%clk 0:00:11.8]} 51. b5 {[%clk 0:03:10.4]} 51... axb5
{[%clk 0:00:11.3]} 52. axb5 {[%clk 0:03:04.3]} 52... Bxg4 {[%clk 0:00:10.5]} 53.
b6 {[%clk 0:03:04.1]} 53... h3 {[%clk 0:00:10.6]} 54. Kc7 {[%clk 0:03:04.7]}
54... Bf3 {[%clk 0:00:08.9]} 55. c6 {[%clk 0:03:05.5]} 55... Bxc6 {[%clk
0:00:09.3]} 56. Kxc6 {[%clk 0:03:06.3]} 56... h2 {[%clk 0:00:10.2]} 57. b7
{[%clk 0:03:08.2]} 57... h1=Q+ {[%clk 0:00:10.7]} 58. Kc7 {[%clk 0:03:10.1]}
58... Qh2+ {[%clk 0:00:11.7]} 59. Kc8 {[%clk 0:03:11.2]} 59... Qe5 {[%clk
0:00:12.1]} 60. b8=Q {[%clk 0:03:13.1]} 60... Qxb8+ {[%clk 0:00:12.1]} 61. Kxb8
{[%clk 0:03:15]} 61... Kf4 {[%clk 0:00:13.2]} 62. Kc7 {[%clk 0:03:16.4]} 62...
g5 {[%clk 0:00:14.4]} 63. Kc6 {[%clk 0:03:18.3]} 63... g4 {[%clk 0:00:15.7]} 64.
Kc5 {[%clk 0:03:20.2]} 64... g3 {[%clk 0:00:17.1]} 65. Kd4 {[%clk 0:03:22.1]}
65... g2 {[%clk 0:00:18.5]} 66. Kd3 {[%clk 0:03:24]} 66... g1=R {[%clk
0:00:18.3]} 67. Ke2 {[%clk 0:03:25.9]} 67... Rg3 {[%clk 0:00:18.6]} 68. Kf1
{[%clk 0:03:27.8]} 68... Rf3+ {[%clk 0:00:19.1]} 69. Ke2 {[%clk 0:03:29.3]}
69... Ke4 {[%clk 0:00:20]} 70. Kd2 {[%clk 0:03:31.2]} 70... Re3 {[%clk
0:00:21.1]} 71. Kc2 {[%clk 0:03:33.1]} 71... Kf3 {[%clk 0:00:20.9]} 72. Kd2
{[%clk 0:03:35]} 72... Kf2 {[%clk 0:00:22]} 73. Kd1 {[%clk 0:03:36.1]} 73...
Rd3+ {[%clk 0:00:21.7]} 74. Kc2 {[%clk 0:03:38]} 74... Ke2 {[%clk 0:00:22.7]}
75. Kc1 {[%clk 0:03:39.9]} 75... Rc3+ {[%clk 0:00:23.2]} 76. Kb2 {[%clk
0:03:41.8]} 76... Kd2 {[%clk 0:00:24.3]} 77. Kb1 {[%clk 0:03:43.7]} 77... Rb3+
{[%clk 0:00:24.7]} 78. Ka2 {[%clk 0:03:45.6]} 78... Kc2 {[%clk 0:00:25.6]} 79.
Ka1 {[%clk 0:03:47.5]} 79... Ra3# {[%clk 0:00:26.6]} 0-1

[Event "GrandPrix_30.05"]
[Site "Chess.com"]
[Date "2020.05.30"]
[Round "6"]
[White "BMOchsner"]
[Black "Arm-Akiba"]
[Result "0-1"]
[WhiteElo "2309"]
[BlackElo "2713"]
[TimeControl "600+2"]
[EndTime "10:56:27 PDT"]
[Termination "Arm-Akiba won on time"]

1. e4 {[%clk 0:10:01.9]} 1... e5 {[%clk 0:10:00.2]} 2. Nf3 {[%clk 0:10:02.8]}
2... Nc6 {[%clk 0:10:01.5]} 3. Bb5 {[%clk 0:10:03.6]} 3... a6 {[%clk 0:10:01.9]}
4. Ba4 {[%clk 0:10:04.6]} 4... Nf6 {[%clk 0:10:03.1]} 5. O-O {[%clk 0:10:05.5]}
5... Be7 {[%clk 0:10:03.1]} 6. Re1 {[%clk 0:10:06.6]} 6... b5 {[%clk 0:10:04.3]}
7. Bb3 {[%clk 0:10:07.6]} 7... O-O {[%clk 0:10:05.4]} 8. a4 {[%clk 0:10:02.4]}
8... b4 {[%clk 0:10:05.8]} 9. d4 {[%clk 0:10:00.9]} 9... d6 {[%clk 0:10:05.7]}
10. dxe5 {[%clk 0:10:01.5]} 10... Nxe5 {[%clk 0:10:06.8]} 11. Nxe5 {[%clk
0:09:53.6]} 11... dxe5 {[%clk 0:10:07.5]} 12. Qe2 {[%clk 0:09:53.7]} 12... Bc5
{[%clk 0:10:07.4]} 13. Be3 {[%clk 0:09:51.4]} 13... Bd4 {[%clk 0:09:53.8]} 14.
Qd3 {[%clk 0:09:51.7]} 14... Bxb2 {[%clk 0:09:25.5]} 15. Bxf7+ {[%clk
0:09:51.4]} 15... Kh8 {[%clk 0:08:52.1]} 16. Qxd8 {[%clk 0:09:21.7]} 16... Rxd8
{[%clk 0:08:54]} 17. Ra2 {[%clk 0:09:22.6]} 17... Bd4 {[%clk 0:08:53.9]} 18.
Bxd4 {[%clk 0:09:23.4]} 18... exd4 {[%clk 0:08:35.2]} 19. Nd2 {[%clk 0:08:47.3]}
19... c5 {[%clk 0:08:28.7]} 20. Bc4 {[%clk 0:08:40.1]} 20... Bb7 {[%clk
0:08:22.3]} 21. Raa1 {[%clk 0:08:29.4]} 21... Re8 {[%clk 0:06:54.7]} 22. e5
{[%clk 0:06:54.1]} 22... Nd7 {[%clk 0:06:47.9]} 23. f4 {[%clk 0:06:14.7]} 23...
Nb6 {[%clk 0:06:45.8]} 24. a5 {[%clk 0:03:59.9]} 24... Nxc4 {[%clk 0:06:45.1]}
25. Nxc4 {[%clk 0:04:00.7]} 25... Bd5 {[%clk 0:06:29.3]} 26. Nd6 {[%clk
0:03:34.9]} 26... Re7 {[%clk 0:06:30.1]} 27. f5 {[%clk 0:03:12.1]} 27... c4
{[%clk 0:05:31.9]} 28. e6 {[%clk 0:03:05.5]} 28... Rd8 {[%clk 0:05:09.9]} 29.
Rad1 {[%clk 0:01:59.4]} 29... d3 {[%clk 0:05:01.9]} 30. cxd3 {[%clk 0:01:13]}
30... c3 {[%clk 0:05:02.2]} 31. Nf7+ {[%clk 0:00:35.3]} 31... Rxf7 {[%clk
0:05:01.4]} 32. exf7 {[%clk 0:00:36.7]} 32... Bxf7 {[%clk 0:05:02.5]} 33. Re7
{[%clk 0:00:35.6]} 33... b3 {[%clk 0:04:24.9]} 34. Rde1 {[%clk 0:00:19.5]} 34...
b2 {[%clk 0:03:30.1]} 35. Rb7 {[%clk 0:00:12.3]} 35... h5 {[%clk 0:02:56.6]} 36.
Kf2 {[%clk 0:00:05.1]} 36... Bd5 {[%clk 0:02:14.8]} 37. Rb6 {[%clk 0:00:03.5]}
37... Ba2 {[%clk 0:02:10.9]} 38. h4 {[%clk 0:00:02.7]} 38... Rd5 {[%clk
0:01:53.1]} 39. Rb8+ {[%clk 0:00:02.5]} 39... Kh7 {[%clk 0:01:53.3]} 40. g4
{[%clk 0:00:02.9]} 40... hxg4 {[%clk 0:01:50.7]} 41. Kg3 {[%clk 0:00:04.1]}
41... Rb5 {[%clk 0:01:35.9]} 42. Rc8 {[%clk 0:00:03.7]} 42... b1=Q {[%clk
0:01:31.8]} 43. Rxb1 {[%clk 0:00:04.7]} 43... Bxb1 {[%clk 0:01:31.5]} 44. Rxc3
{[%clk 0:00:05.7]} 44... Rxf5 {[%clk 0:01:28.5]} 45. Kxg4 {[%clk 0:00:06.1]}
45... Rxa5 {[%clk 0:01:28.6]} 0-1

[Event "GrandPrix_30.05"]
[Site "Chess.com"]
[Date "2020.05.30"]
[Round "6"]
[White "Vesper2018"]
[Black "Flawless_Fighter"]
[Result "0-1"]
[WhiteElo "1947"]
[BlackElo "2156"]
[TimeControl "600+2"]
[EndTime "10:56:38 PDT"]
[Termination "Flawless_Fighter won on time"]

1. e4 {[%clk 0:09:57.8]} 1... c6 {[%clk 0:10:00.3]} 2. d4 {[%clk 0:09:58.2]}
2... d5 {[%clk 0:10:02.2]} 3. e5 {[%clk 0:09:59.2]} 3... Bf5 {[%clk 0:10:02.5]}
4. Nf3 {[%clk 0:10:00.3]} 4... e6 {[%clk 0:10:02.6]} 5. Be2 {[%clk 0:10:01.4]}
5... Ne7 {[%clk 0:10:03]} 6. O-O {[%clk 0:10:01.6]} 6... Ng6 {[%clk 0:10:02.8]}
7. c3 {[%clk 0:10:00.3]} 7... Nd7 {[%clk 0:09:59.5]} 8. Re1 {[%clk 0:09:44.3]}
8... f6 {[%clk 0:09:58.1]} 9. Bd3 {[%clk 0:09:09.2]} 9... Bxd3 {[%clk
0:09:42.5]} 10. Qxd3 {[%clk 0:09:10.1]} 10... fxe5 {[%clk 0:09:44.2]} 11. dxe5
{[%clk 0:08:57.3]} 11... Bc5 {[%clk 0:09:31.5]} 12. Be3 {[%clk 0:08:38]} 12...
O-O {[%clk 0:09:13]} 13. Bxc5 {[%clk 0:08:25.5]} 13... Nxc5 {[%clk 0:09:14.9]}
14. Qe3 {[%clk 0:08:26.3]} 14... Nd7 {[%clk 0:08:57.6]} 15. Nbd2 {[%clk
0:08:10.8]} 15... Rf5 {[%clk 0:08:56.3]} 16. g4 {[%clk 0:06:56.6]} 16... Rf8
{[%clk 0:08:45]} 17. Nf1 {[%clk 0:06:13]} 17... Rf4 {[%clk 0:08:38.3]} 18. h3
{[%clk 0:06:05]} 18... Qf8 {[%clk 0:08:36.3]} 19. N1h2 {[%clk 0:05:52.8]} 19...
Re8 {[%clk 0:08:09.3]} 20. Re2 {[%clk 0:05:46.4]} 20... Re4 {[%clk 0:07:53.1]}
21. Qd2 {[%clk 0:05:43.4]} 21... Ndxe5 {[%clk 0:07:44.5]} 22. Rxe4 {[%clk
0:05:21.1]} 22... dxe4 {[%clk 0:07:25.6]} 23. Nxe5 {[%clk 0:05:21.5]} 23... Nxe5
{[%clk 0:07:27.5]} 24. Qe3 {[%clk 0:05:17.3]} 24... Nd3 {[%clk 0:07:18.1]} 25.
f3 {[%clk 0:04:38]} 25... Nxb2 {[%clk 0:06:54.8]} 26. Qxe4 {[%clk 0:04:29.8]}
26... Qc5+ {[%clk 0:06:38.8]} 27. Kh1 {[%clk 0:04:28.1]} 27... Qxc3 {[%clk
0:06:29.3]} 28. Rb1 {[%clk 0:04:06.4]} 28... Nd3 {[%clk 0:05:52.3]} 29. Qe2
{[%clk 0:03:46.3]} 29... Nf4 {[%clk 0:05:35.1]} 30. Qe4 {[%clk 0:03:32.7]} 30...
Qd2 {[%clk 0:04:47.8]} 31. Rg1 {[%clk 0:03:14]} 31... Nxh3 {[%clk 0:04:18.1]}
32. Qe1 {[%clk 0:03:14.7]} 32... Qxa2 {[%clk 0:04:02.4]} 33. Rg2 {[%clk
0:03:14.9]} 33... Qd5 {[%clk 0:04:00.2]} 34. Rd2 {[%clk 0:03:13.1]} 34... Qg5
{[%clk 0:03:20.3]} 35. Rd7 {[%clk 0:03:06.7]} 35... Re7 {[%clk 0:02:51]} 36.
Rd8+ {[%clk 0:02:43.3]} 36... Kf7 {[%clk 0:02:52]} 37. Qb1 {[%clk 0:02:20.2]}
37... Qe3 {[%clk 0:02:39]} 38. Kg2 {[%clk 0:02:00.8]} 38... Nf4+ {[%clk
0:02:35.3]} 39. Kg3 {[%clk 0:02:02.1]} 39... Ne2+ {[%clk 0:02:26.7]} 40. Kg2
{[%clk 0:02:02.8]} 40... Nf4+ {[%clk 0:02:09.9]} 41. Kg3 {[%clk 0:02:03.7]}
41... Ng6 {[%clk 0:02:10.3]} 42. Kg2 {[%clk 0:01:27.5]} 42... Qb6 {[%clk
0:02:07.4]} 43. Qd1 {[%clk 0:01:19.9]} 43... Qb2+ {[%clk 0:01:54.1]} 44. Rd2
{[%clk 0:01:18.2]} 44... Qe5 {[%clk 0:01:55.1]} 45. Rd8 {[%clk 0:01:11.5]} 45...
c5 {[%clk 0:01:54.6]} 46. Nf1 {[%clk 0:01:06.2]} 46... Qf4 {[%clk 0:01:43.4]}
47. Nd2 {[%clk 0:00:37.6]} 47... h6 {[%clk 0:01:36.3]} 48. Qe2 {[%clk
0:00:16.2]} 48... Qc7 {[%clk 0:01:29.5]} 0-1

[Event "GrandPrix_30.05"]
[Site "Chess.com"]
[Date "2020.05.30"]
[Round "6"]
[White "MikaelyanArman1996"]
[Black "dzhumagaliev"]
[Result "1-0"]
[WhiteElo "2410"]
[BlackElo "2230"]
[TimeControl "600+2"]
[EndTime "10:56:39 PDT"]
[Termination "MikaelyanArman1996 won by checkmate"]

1. e4 {[%clk 0:10:01.9]} 1... c5 {[%clk 0:10:00.6]} 2. Nc3 {[%clk 0:10:02.8]}
2... Nc6 {[%clk 0:10:01.9]} 3. Bb5 {[%clk 0:10:03.2]} 3... Nd4 {[%clk
0:09:54.4]} 4. Nf3 {[%clk 0:10:03.1]} 4... e6 {[%clk 0:09:46.4]} 5. O-O {[%clk
0:10:02.7]} 5... a6 {[%clk 0:09:32.7]} 6. Bd3 {[%clk 0:10:02.7]} 6... Nc6 {[%clk
0:09:28.5]} 7. b3 {[%clk 0:09:59.7]} 7... d6 {[%clk 0:09:26.7]} 8. Bb2 {[%clk
0:10:00]} 8... Nf6 {[%clk 0:09:28.2]} 9. Re1 {[%clk 0:09:57.9]} 9... Be7 {[%clk
0:09:28.4]} 10. e5 {[%clk 0:09:50.3]} 10... dxe5 {[%clk 0:09:28.4]} 11. Nxe5
{[%clk 0:09:52.2]} 11... Nxe5 {[%clk 0:09:25.5]} 12. Rxe5 {[%clk 0:09:54.1]}
12... Qc7 {[%clk 0:09:10.5]} 13. Rg5 {[%clk 0:09:27.6]} 13... g6 {[%clk
0:08:33.1]} 14. Qf3 {[%clk 0:08:40.7]} 14... Rg8 {[%clk 0:07:27.3]} 15. Nb5
{[%clk 0:06:57]} 15... Qd8 {[%clk 0:05:45.1]} 16. Nc7+ {[%clk 0:06:20.8]} 16...
Qxc7 {[%clk 0:05:38.8]} 17. Bxf6 {[%clk 0:06:21.7]} 17... h6 {[%clk 0:04:57.5]}
18. Bxe7 {[%clk 0:05:55]} 18... hxg5 {[%clk 0:04:46.6]} 19. Bxg5 {[%clk
0:05:48.7]} 19... f5 {[%clk 0:03:31.4]} 20. Re1 {[%clk 0:05:41.4]} 20... Rh8
{[%clk 0:03:28.8]} 21. Bf4 {[%clk 0:05:06.4]} 21... Qc6 {[%clk 0:03:01.1]} 22.
Qg3 {[%clk 0:05:03.4]} 22... Kf7 {[%clk 0:02:56]} 23. Be5 {[%clk 0:05:02]} 23...
Rg8 {[%clk 0:01:59]} 24. Qh4 {[%clk 0:04:52]} 24... g5 {[%clk 0:01:24.8]} 25.
Qh7+ {[%clk 0:04:28.5]} 25... Kf8 {[%clk 0:01:25.8]} 26. Qh6+ {[%clk 0:03:55.2]}
26... Kf7 {[%clk 0:01:13.5]} 27. Qf6+ {[%clk 0:02:30.6]} 27... Ke8 {[%clk
0:01:14.1]} 28. Bxf5 {[%clk 0:02:26.6]} 28... Qd7 {[%clk 0:00:46.9]} 29. Bg6+
{[%clk 0:02:26]} 29... Rxg6 {[%clk 0:00:47.2]} 30. Qxg6+ {[%clk 0:02:27.9]}
30... Qf7 {[%clk 0:00:48.8]} 31. Qxg5 {[%clk 0:02:09.4]} 31... Bd7 {[%clk
0:00:49.7]} 32. Re3 {[%clk 0:02:07.4]} 32... Bc6 {[%clk 0:00:50.6]} 33. Rh3
{[%clk 0:01:44.7]} 33... Kd7 {[%clk 0:00:50.9]} 34. Rd3+ {[%clk 0:01:43.5]}
34... Bd5 {[%clk 0:00:52.1]} 35. Bg3 {[%clk 0:01:19.4]} 35... Rg8 {[%clk
0:00:12.6]} 36. Qe5 {[%clk 0:01:18.9]} 36... Kc6 {[%clk 0:00:05.2]} 37. Qd6+
{[%clk 0:01:15.3]} 37... Kb5 {[%clk 0:00:06.5]} 38. c4+ {[%clk 0:01:04.1]} 38...
Kb4 {[%clk 0:00:07.8]} 39. cxd5 {[%clk 0:00:59.8]} 39... exd5 {[%clk 0:00:08.8]}
40. Qb6+ {[%clk 0:00:59.3]} 40... Ka3 {[%clk 0:00:09.5]} 41. Qxc5+ {[%clk
0:00:57.9]} 41... Kxa2 {[%clk 0:00:09.6]} 42. Qc2+ {[%clk 0:00:57.2]} 42... Ka3
{[%clk 0:00:08]} 43. Bd6# {[%clk 0:00:57.2]} 1-0

[Event "GrandPrix_30.05"]
[Site "Chess.com"]
[Date "2020.05.30"]
[Round "6"]
[White "GMMarcinDziuba"]
[Black "Hrant_ChessMood"]
[Result "0-1"]
[WhiteElo "2544"]
[BlackElo "2765"]
[TimeControl "600+2"]
[EndTime "10:56:41 PDT"]
[Termination "Hrant_ChessMood won by resignation"]

1. c4 {[%clk 0:10:01.9]} 1... Nf6 {[%clk 0:09:59.4]} 2. g3 {[%clk 0:10:02.4]}
2... e5 {[%clk 0:09:51]} 3. Bg2 {[%clk 0:10:02.9]} 3... Bc5 {[%clk 0:09:47.4]}
4. Nc3 {[%clk 0:09:53.8]} 4... O-O {[%clk 0:09:45.4]} 5. e3 {[%clk 0:09:49.8]}
5... c6 {[%clk 0:09:45.3]} 6. Nge2 {[%clk 0:09:49.7]} 6... d5 {[%clk 0:09:46.3]}
7. cxd5 {[%clk 0:09:48.5]} 7... Nxd5 {[%clk 0:09:46.3]} 8. O-O {[%clk
0:09:31.8]} 8... Be6 {[%clk 0:08:59.8]} 9. d4 {[%clk 0:09:12.4]} 9... exd4
{[%clk 0:08:56.7]} 10. Nxd4 {[%clk 0:09:08.8]} 10... Nxc3 {[%clk 0:08:55]} 11.
bxc3 {[%clk 0:09:09]} 11... Bc4 {[%clk 0:08:52.1]} 12. Re1 {[%clk 0:09:10.1]}
12... Nd7 {[%clk 0:08:52.6]} 13. e4 {[%clk 0:08:40.9]} 13... Ne5 {[%clk
0:08:47.4]} 14. Be3 {[%clk 0:08:28.5]} 14... Bb6 {[%clk 0:07:08.6]} 15. Qh5
{[%clk 0:07:15]} 15... Re8 {[%clk 0:06:47.4]} 16. f4 {[%clk 0:06:50.6]} 16... g6
{[%clk 0:06:25.1]} 17. Qh3 {[%clk 0:06:13.8]} 17... Nd3 {[%clk 0:06:23.8]} 18.
Red1 {[%clk 0:06:12.5]} 18... Qe7 {[%clk 0:06:04.1]} 19. Rd2 {[%clk 0:05:49.4]}
19... Qa3 {[%clk 0:04:29.5]} 20. Rc2 {[%clk 0:04:28.6]} 20... Nb4 {[%clk
0:04:08.3]} 21. Rcc1 {[%clk 0:04:11.6]} 21... Nd3 {[%clk 0:03:15.4]} 22. Rc2
{[%clk 0:04:11.1]} 22... Rad8 {[%clk 0:02:59.4]} 23. Kh1 {[%clk 0:03:51.6]}
23... Nb4 {[%clk 0:02:32.4]} 24. Rcc1 {[%clk 0:03:44.5]} 24... Nd3 {[%clk
0:02:30.4]} 25. Rc2 {[%clk 0:03:45.2]} 25... Nc5 {[%clk 0:02:00.3]} 26. e5
{[%clk 0:02:18.2]} 26... Ne6 {[%clk 0:02:00.6]} 27. Rd1 {[%clk 0:01:37.7]} 27...
c5 {[%clk 0:01:57]} 28. f5 {[%clk 0:01:07]} 28... cxd4 {[%clk 0:01:57.4]} 29.
cxd4 {[%clk 0:00:52.1]} 29... Qxe3 {[%clk 0:01:51.1]} 30. Rxc4 {[%clk
0:00:48.8]} 30... Rxd4 {[%clk 0:01:50.1]} 31. Rcxd4 {[%clk 0:00:44.7]} 31...
Nxd4 {[%clk 0:01:51.3]} 32. e6 {[%clk 0:00:45.9]} 32... fxe6 {[%clk 0:01:34.8]}
33. fxg6 {[%clk 0:00:46.6]} 33... hxg6 {[%clk 0:01:35.8]} 34. Qg4 {[%clk
0:00:46.5]} 34... Kg7 {[%clk 0:01:33.5]} 35. Bxb7 {[%clk 0:00:45.4]} 35... Qe2
{[%clk 0:01:15.1]} 36. Qxe2 {[%clk 0:00:23.9]} 36... Nxe2 {[%clk 0:01:14.8]} 37.
Rd7+ {[%clk 0:00:25.8]} 37... Kf6 {[%clk 0:01:13.5]} 38. Kg2 {[%clk 0:00:26.4]}
38... Re7 {[%clk 0:01:13.2]} 39. Rxe7 {[%clk 0:00:26.3]} 39... Kxe7 {[%clk
0:01:15.1]} 40. h4 {[%clk 0:00:27.7]} 40... Nc3 {[%clk 0:01:12.6]} 41. a3 {[%clk
0:00:26.8]} 41... Bc5 {[%clk 0:01:13.7]} 42. g4 {[%clk 0:00:22.9]} 42... Bxa3
{[%clk 0:01:14.5]} 43. h5 {[%clk 0:00:24.4]} 43... gxh5 {[%clk 0:01:15.8]} 44.
gxh5 {[%clk 0:00:26.3]} 44... Bc1 {[%clk 0:01:16]} 45. Kf3 {[%clk 0:00:27.1]}
45... Kd6 {[%clk 0:01:15.2]} 46. Ba6 {[%clk 0:00:24.9]} 46... Nd5 {[%clk
0:01:15.7]} 47. Ke2 {[%clk 0:00:23.5]} 47... Nf6 {[%clk 0:01:16.5]} 48. Kd1
{[%clk 0:00:23]} 48... Bh6 {[%clk 0:01:17.5]} 49. Be2 {[%clk 0:00:24.9]} 49...
Kc5 {[%clk 0:01:16.9]} 50. Kc2 {[%clk 0:00:26.3]} 50... Kd4 {[%clk 0:01:16.9]}
0-1

[Event "GrandPrix_30.05"]
[Site "Chess.com"]
[Date "2020.05.30"]
[Round "6"]
[White "VolodymyrMolyboha"]
[Black "HElissalt"]
[Result "1-0"]
[WhiteElo "2212"]
[BlackElo "2049"]
[TimeControl "600+2"]
[EndTime "10:56:43 PDT"]
[Termination "VolodymyrMolyboha won by resignation"]

1. e4 {[%clk 0:09:57.2]} 1... c5 {[%clk 0:09:50.5]} 2. Nf3 {[%clk 0:09:56.9]}
2... Nc6 {[%clk 0:09:48.4]} 3. Bb5 {[%clk 0:09:57.1]} 3... g6 {[%clk 0:09:48.4]}
4. O-O {[%clk 0:09:57.9]} 4... Bg7 {[%clk 0:09:48.6]} 5. c3 {[%clk 0:09:56.9]}
5... Nf6 {[%clk 0:09:00.4]} 6. Re1 {[%clk 0:09:55]} 6... O-O {[%clk 0:08:57.6]}
7. d4 {[%clk 0:09:53.7]} 7... cxd4 {[%clk 0:08:57.8]} 8. cxd4 {[%clk 0:09:54]}
8... d5 {[%clk 0:08:58.9]} 9. e5 {[%clk 0:09:55]} 9... Ne4 {[%clk 0:08:59.7]}
10. Be3 {[%clk 0:09:56.1]} 10... Qb6 {[%clk 0:08:29]} 11. Bxc6 {[%clk
0:09:53.8]} 11... bxc6 {[%clk 0:08:04.5]} 12. Qc1 {[%clk 0:09:51.5]} 12... Rb8
{[%clk 0:07:46.7]} 13. b3 {[%clk 0:09:49.7]} 13... f6 {[%clk 0:07:29]} 14. Nc3
{[%clk 0:08:50.9]} 14... Nxc3 {[%clk 0:05:57.7]} 15. Qxc3 {[%clk 0:08:48.9]}
15... Bg4 {[%clk 0:05:58.6]} 16. exf6 {[%clk 0:08:18.5]} 16... exf6 {[%clk
0:05:53.2]} 17. Bf4 {[%clk 0:08:12.1]} 17... Rbc8 {[%clk 0:05:38.7]} 18. Bd6
{[%clk 0:08:09.1]} 18... Rfe8 {[%clk 0:05:37.2]} 19. Bc5 {[%clk 0:08:00.9]}
19... Qc7 {[%clk 0:05:33.4]} 20. Nd2 {[%clk 0:07:52.9]} 20... Bh6 {[%clk
0:05:30.8]} 21. Nf1 {[%clk 0:07:28.1]} 21... Kf7 {[%clk 0:05:00.9]} 22. h3
{[%clk 0:07:15.9]} 22... Bd7 {[%clk 0:04:49.3]} 23. Rxe8 {[%clk 0:06:33.5]}
23... Rxe8 {[%clk 0:04:48.1]} 24. Re1 {[%clk 0:06:34]} 24... Rxe1 {[%clk
0:04:01]} 25. Qxe1 {[%clk 0:06:29.9]} 25... Be6 {[%clk 0:04:01.7]} 26. Ne3
{[%clk 0:06:11.3]} 26... Bf4 {[%clk 0:03:56]} 27. a4 {[%clk 0:05:43.5]} 27... h5
{[%clk 0:03:53.8]} 28. Qe2 {[%clk 0:04:58.4]} 28... Qb7 {[%clk 0:03:50.2]} 29.
b4 {[%clk 0:04:44.7]} 29... Bb8 {[%clk 0:03:33.1]} 30. Nf1 {[%clk 0:04:28.3]}
30... Bc7 {[%clk 0:03:17.1]} 31. Qe3 {[%clk 0:04:19.4]} 31... g5 {[%clk
0:03:12.3]} 32. Qd3 {[%clk 0:04:17.4]} 32... Kg7 {[%clk 0:02:54.3]} 33. Qe2
{[%clk 0:04:17.6]} 33... Bf7 {[%clk 0:02:29.3]} 34. Qe7 {[%clk 0:04:16.5]} 34...
Qb8 {[%clk 0:02:27.5]} 35. Ne3 {[%clk 0:04:12]} 35... a5 {[%clk 0:02:12.8]} 36.
g4 {[%clk 0:03:30.7]} 36... hxg4 {[%clk 0:01:57.1]} 37. hxg4 {[%clk 0:03:31.3]}
37... Qd8 {[%clk 0:01:51.9]} 38. Nf5+ {[%clk 0:03:01.1]} 38... Kg6 {[%clk
0:01:51.9]} 39. Qxd8 {[%clk 0:02:47]} 39... Bxd8 {[%clk 0:01:52.1]} 40. bxa5
{[%clk 0:02:48.3]} 40... Bxa5 {[%clk 0:01:52.7]} 41. Ne7+ {[%clk 0:02:48.7]}
41... Kg7 {[%clk 0:01:44.6]} 42. Nxc6 {[%clk 0:02:49.2]} 42... Bc3 {[%clk
0:01:41.3]} 43. a5 {[%clk 0:02:42.6]} 43... Be8 {[%clk 0:01:41]} 44. Ne7 {[%clk
0:02:36.1]} 44... Bb5 {[%clk 0:01:35.1]} 45. Bb6 {[%clk 0:01:52.9]} 45... Bc4
{[%clk 0:01:35.4]} 46. Nc6 {[%clk 0:01:51.3]} 46... Kf7 {[%clk 0:01:25.9]} 47.
Nb8 {[%clk 0:01:51.8]} 47... f5 {[%clk 0:00:54.8]} 48. gxf5 {[%clk 0:01:47.5]}
48... Kf6 {[%clk 0:00:55.3]} 49. a6 {[%clk 0:01:47.7]} 49... Bxa6 {[%clk
0:00:55.6]} 50. Nxa6 {[%clk 0:01:47.9]} 50... Kxf5 {[%clk 0:00:57.5]} 51. Nc7
{[%clk 0:01:35.7]} 51... Ke4 {[%clk 0:00:57.1]} 52. Nb5 {[%clk 0:01:28.6]} 52...
Bb2 {[%clk 0:00:56.4]} 53. Kg2 {[%clk 0:01:29.7]} 53... g4 {[%clk 0:00:45.4]}
54. Kg3 {[%clk 0:01:24.5]} 54... Kf5 {[%clk 0:00:45.7]} 55. Nc7 {[%clk
0:01:17.9]} 1-0